[Event "Titled Tuesday Blitz November 22 Early 2022"]
[White "Garv Gaur"]
[Black "Shapiro, Daniel"]
[WhiteFideId "45030839"]
[BlackFideId "2001780"]
[WhiteElo "1960"]
[BlackElo "2329"]
[Result "0-1"]
[Round "02"]
[TimeControl "180+1"]
[Date "2022.11.23"]
[WhiteClock "0:00:09"]
[BlackClock "0:00:05"]

1. d4 {[%clk 0:03:00]}  Nf6 {[%clk 0:02:58]} 2. c4 {[%clk 0:02:59]}  e6 {[%clk 0:02:58]} 3. Nf3 {[%clk 0:02:59]}  d5 {[%clk 0:02:57]} 4. g3 {[%clk 0:02:58]}  Bb4+ {[%clk 0:02:53]} 5. Bd2 {[%clk 0:02:56]}  Be7 {[%clk 0:02:53]} 6. Bg2 {[%clk 0:02:56]}  c6 {[%clk 0:02:53]} 7. O-O {[%clk 0:02:55]}  O-O {[%clk 0:02:54]} 8. Qc2 {[%clk 0:02:52]}  b6 {[%clk 0:02:54]} 9. Rd1 {[%clk 0:02:50]}  Ba6 {[%clk 0:02:54]} 10. Ne5 {[%clk 0:02:47]}  Nfd7 {[%clk 0:02:21]} 11. b3 {[%clk 0:02:34]}  Nxe5 {[%clk 0:02:18]} 12. dxe5 {[%clk 0:02:35]}  Nd7 {[%clk 0:02:14]} 13. Bc3 {[%clk 0:02:22]}  Qc7 {[%clk 0:02:10]} 14. cxd5 {[%clk 0:02:18]}  cxd5 {[%clk 0:02:08]} 15. Qb2 {[%clk 0:02:18]}  Rac8 {[%clk 0:02:02]} 16. e4 {[%clk 0:02:18]}  dxe4 {[%clk 0:01:50]} 17. Bxe4 {[%clk 0:02:19]}  Nc5 {[%clk 0:01:49]} 18. Bc2 {[%clk 0:02:15]}  Bb7 {[%clk 0:01:44]} 19. Nd2 {[%clk 0:01:56]}  Qc6 {[%clk 0:01:41]} 20. f3 {[%clk 0:01:56]}  Rfd8 {[%clk 0:01:36]} 21. Bd4 {[%clk 0:01:37]}  Na4 {[%clk 0:01:26]} 22. bxa4 {[%clk 0:01:29]}  Rxd4 {[%clk 0:01:16]} 23. Be4 {[%clk 0:01:23]}  Qd7 {[%clk 0:01:04]} 24. Bxb7 {[%clk 0:01:20]}  Qxb7 {[%clk 0:01:02]} 25. Qxd4 {[%clk 0:01:19]}  Bc5 {[%clk 0:01:02]} 26. Qxc5 {[%clk 0:01:12]}  bxc5 {[%clk 0:00:53]} 27. Ne4 {[%clk 0:01:13]}  Qb2 {[%clk 0:00:36]} 28. Rac1 {[%clk 0:01:00]}  h6 {[%clk 0:00:29]} 29. Nd6 {[%clk 0:00:45]}  Rc6 {[%clk 0:00:18]} 30. Rb1 {[%clk 0:00:44]}  Qxe5 {[%clk 0:00:16]} 31. Rb8+ {[%clk 0:00:42]}  Kh7 {[%clk 0:00:16]} 32. Rh8+ {[%clk 0:00:24]}  Kg6 {[%clk 0:00:13]} 33. Ne4 {[%clk 0:00:24]}  c4 {[%clk 0:00:12]} 34. g4 {[%clk 0:00:18]}  f5 {[%clk 0:00:10]} 35. Nf2 {[%clk 0:00:12]}  c3 {[%clk 0:00:08]} 36. h4 {[%clk 0:00:09]}  c2 {[%clk 0:00:06]} 37. Rc1 {[%clk 0:00:09]}  Qe3 {[%clk 0:00:06]} 38. h5+ {[%clk 0:00:09]}  Kg5 {[%clk 0:00:06]} 39. Kg2 {[%clk 0:00:07]}  fxg4 {[%clk 0:00:06]} 40. fxg4 {[%clk 0:00:06]}  Qxc1 {[%clk 0:00:06]} 41. Rf8 {[%clk 0:00:06]}  e5 {[%clk 0:00:04]} 42. Kg3 {[%clk 0:00:06]}  Qe3+ {[%clk 0:00:04]} 43. Rf3 {[%clk 0:00:07]}  Qxf3+ {[%clk 0:00:04]} 44. Kxf3 {[%clk 0:00:08]}  c1=Q {[%clk 0:00:04]} 45. Ne4+ {[%clk 0:00:08]}  Kh4 {[%clk 0:00:04]} 46. Nf2 {[%clk 0:00:08]}  Qf4+ {[%clk 0:00:04]} 47. Kg2 {[%clk 0:00:08]}  Rc2 {[%clk 0:00:05]} 48. Kh1 {[%clk 0:00:08]}  Qxf2 {[%clk 0:00:05]} 49. g5 {[%clk 0:00:09]}  Qg2# {[%clk 0:00:05]} 0-1


[Site "https://www.chess.com"]

[Event "Titled Tuesday Blitz November 22 Early 2022"]
[White "Ghosh, Chanchal Kumer"]
[Black "Papasimakopoulos, Alexandros"]
[WhiteFideId "10201858"]
[BlackFideId "4244125"]
[WhiteElo "2058"]
[BlackElo "2365"]
[Result "0-1"]
[Round "02"]
[TimeControl "180+1"]
[Date "2022.11.23"]
[WhiteClock "0:00:12"]
[BlackClock "0:00:42"]

1. e4 {[%clk 0:03:00]}  e6 {[%clk 0:02:49]} 2. Nf3 {[%clk 0:03:01]}  d5 {[%clk 0:02:46]} 3. Nc3 {[%clk 0:03:01]}  Bb4 {[%clk 0:02:44]} 4. Bd3 {[%clk 0:02:48]}  Nf6 {[%clk 0:02:42]} 5. e5 {[%clk 0:02:39]}  Nfd7 {[%clk 0:02:42]} 6. O-O {[%clk 0:02:38]}  h6 {[%clk 0:02:39]} 7. a3 {[%clk 0:02:36]}  Be7 {[%clk 0:02:37]} 8. Re1 {[%clk 0:02:32]}  c5 {[%clk 0:02:37]} 9. b3 {[%clk 0:02:31]}  Nc6 {[%clk 0:02:34]} 10. Bf1 {[%clk 0:02:15]}  a6 {[%clk 0:02:34]} 11. d4 {[%clk 0:02:15]}  cxd4 {[%clk 0:02:33]} 12. Nxd4 {[%clk 0:02:16]}  Ncxe5 {[%clk 0:02:19]} 13. Nxe6 {[%clk 0:01:59]}  fxe6 {[%clk 0:02:18]} 14. Bd3 {[%clk 0:01:44]}  O-O {[%clk 0:02:09]} 15. Qh5 {[%clk 0:01:29]}  Nxd3 {[%clk 0:02:07]} 16. cxd3 {[%clk 0:01:23]}  Bc5 {[%clk 0:01:59]} 17. Bxh6 {[%clk 0:01:14]}  Qf6 {[%clk 0:01:48]} 18. Be3 {[%clk 0:01:00]}  Bxe3 {[%clk 0:01:47]} 19. fxe3 {[%clk 0:01:01]}  Qxc3 {[%clk 0:01:44]} 20. d4 {[%clk 0:00:55]}  Nf6 {[%clk 0:01:41]} 21. Qg6 {[%clk 0:00:53]}  Bd7 {[%clk 0:01:41]} 22. Rac1 {[%clk 0:00:50]}  Qa5 {[%clk 0:01:32]} 23. Rf1 {[%clk 0:00:44]}  Be8 {[%clk 0:01:22]} 24. Qg5 {[%clk 0:00:37]}  Rf7 {[%clk 0:01:14]} 25. Rf4 {[%clk 0:00:33]}  Ne4 {[%clk 0:01:10]} 26. Qg4 {[%clk 0:00:29]}  Rxf4 {[%clk 0:01:08]} 27. Qxf4 {[%clk 0:00:26]}  Qd2 {[%clk 0:01:07]} 28. Rf1 {[%clk 0:00:26]}  Bg6 {[%clk 0:01:05]} 29. h4 {[%clk 0:00:22]}  Nf6 {[%clk 0:00:57]} 30. Qg5 {[%clk 0:00:20]}  Be4 {[%clk 0:00:55]} 31. Rxf6 {[%clk 0:00:18]}  Qxg2+ {[%clk 0:00:56]} 32. Qxg2 {[%clk 0:00:19]}  Bxg2 {[%clk 0:00:56]} 33. Rxe6 {[%clk 0:00:19]}  Be4 {[%clk 0:00:57]} 34. Re7 {[%clk 0:00:18]}  b5 {[%clk 0:00:52]} 35. Re6 {[%clk 0:00:16]}  Bc2 {[%clk 0:00:51]} 36. b4 {[%clk 0:00:15]}  Bb3 {[%clk 0:00:51]} 37. e4 {[%clk 0:00:13]}  dxe4 {[%clk 0:00:51]} 38. Rxe4 {[%clk 0:00:14]}  a5 {[%clk 0:00:52]} 39. Re5 {[%clk 0:00:13]}  axb4 {[%clk 0:00:52]} 40. axb4 {[%clk 0:00:13]}  Bc4 {[%clk 0:00:52]} 41. Rc5 {[%clk 0:00:12]}  Rd8 {[%clk 0:00:52]} 42. h5 {[%clk 0:00:11]}  Rxd4 {[%clk 0:00:51]} 43. h6 {[%clk 0:00:11]}  gxh6 {[%clk 0:00:50]} 44. Kf2 {[%clk 0:00:11]}  Kf7 {[%clk 0:00:48]} 45. Ke3 {[%clk 0:00:12]}  Rg4 {[%clk 0:00:47]} 46. Kf3 {[%clk 0:00:11]}  Rg1 {[%clk 0:00:47]} 47. Ke4 {[%clk 0:00:10]}  Rb1 {[%clk 0:00:47]} 48. Kf5 {[%clk 0:00:10]}  Rxb4 {[%clk 0:00:46]} 49. Rc6 {[%clk 0:00:11]}  Bd3+ {[%clk 0:00:43]} 50. Ke5 {[%clk 0:00:11]}  Re4+ {[%clk 0:00:43]} 51. Kd5 {[%clk 0:00:12]}  Rh4 {[%clk 0:00:42]} 0-1


[Site "https://www.chess.com"]

[Event "Titled Tuesday Blitz November 22 Early 2022"]
[White "Goldin, Alexander"]
[Black "Corrales Jimenez, Fidel"]
[WhiteFideId "2019540"]
[BlackFideId "3506690"]
[WhiteElo "2618"]
[BlackElo "2541"]
[Result "1-0"]
[Round "02"]
[TimeControl "180+1"]
[Date "2022.11.22"]
[WhiteClock "0:00:45"]
[BlackClock "0:00:04"]

1. d4 {[%clk 0:03:00]}  Nf6 {[%clk 0:02:52]} 2. Nf3 {[%clk 0:03:00]}  g6 {[%clk 0:02:51]} 3. g3 {[%clk 0:03:00]}  Bg7 {[%clk 0:02:52]} 4. Bg2 {[%clk 0:03:00]}  O-O {[%clk 0:02:52]} 5. O-O {[%clk 0:03:00]}  d5 {[%clk 0:02:53]} 6. Be3 {[%clk 0:02:58]}  b6 {[%clk 0:02:50]} 7. Qc1 {[%clk 0:02:56]}  Bb7 {[%clk 0:02:50]} 8. Bh6 {[%clk 0:02:52]}  Nbd7 {[%clk 0:02:50]} 9. Rd1 {[%clk 0:02:43]}  Rc8 {[%clk 0:02:48]} 10. Bxg7 {[%clk 0:02:25]}  Kxg7 {[%clk 0:02:43]} 11. Qf4 {[%clk 0:02:18]}  c5 {[%clk 0:02:42]} 12. c3 {[%clk 0:02:16]}  cxd4 {[%clk 0:02:38]} 13. cxd4 {[%clk 0:02:15]}  Ba6 {[%clk 0:02:36]} 14. Nc3 {[%clk 0:02:14]}  Qc7 {[%clk 0:02:32]} 15. Rac1 {[%clk 0:02:05]}  Qxf4 {[%clk 0:02:27]} 16. gxf4 {[%clk 0:02:05]}  Ne4 {[%clk 0:02:26]} 17. Nxd5 {[%clk 0:01:46]}  Bxe2 {[%clk 0:02:15]} 18. Rxc8 {[%clk 0:01:25]}  Rxc8 {[%clk 0:02:14]} 19. Re1 {[%clk 0:01:20]}  Rc2 {[%clk 0:02:08]} 20. Nxe7 {[%clk 0:01:17]}  Nxf2 {[%clk 0:01:59]} 21. Kxf2 {[%clk 0:01:11]}  Bc4+ {[%clk 0:01:58]} 22. Kg3 {[%clk 0:01:08]}  Rxb2 {[%clk 0:01:57]} 23. Ne5 {[%clk 0:01:06]}  Bxa2 {[%clk 0:01:57]} 24. Rc1 {[%clk 0:00:58]}  Nf6 {[%clk 0:01:52]} 25. Bf3 {[%clk 0:00:57]}  a5 {[%clk 0:01:42]} 26. Rc7 {[%clk 0:00:56]}  a4 {[%clk 0:01:42]} 27. d5 {[%clk 0:00:54]}  a3 {[%clk 0:01:09]} 28. Ra7 {[%clk 0:00:53]}  Rb3 {[%clk 0:00:57]} 29. Nf5+ {[%clk 0:00:48]}  gxf5 {[%clk 0:00:39]} 30. Rxf7+ {[%clk 0:00:47]}  Kg8 {[%clk 0:00:39]} 31. Rxf6 {[%clk 0:00:48]}  Rb5 {[%clk 0:00:33]} 32. d6 {[%clk 0:00:46]}  Ra5 {[%clk 0:00:33]} 33. d7 {[%clk 0:00:45]}  Ra8 {[%clk 0:00:30]} 34. Rc6 {[%clk 0:00:45]}  Be6 {[%clk 0:00:14]} 35. Rxe6 {[%clk 0:00:45]}  Kf8 {[%clk 0:00:04]} 36. Bh5 {[%clk 0:00:45]} 1-0


[Site "https://www.chess.com"]

[Event "Titled Tuesday Blitz November 22 Early 2022"]
[White "Golubev, Mikhail"]
[Black "Talibov, Shiroghlan"]
[WhiteFideId "14100983"]
[BlackFideId "13429078"]
[WhiteElo "2374"]
[BlackElo "2261"]
[Result "1-0"]
[Round "02"]
[TimeControl "180+1"]
[Date "2022.11.23"]
[WhiteClock "0:01:12"]
[BlackClock "0:01:21"]

1. e4 {[%clk 0:02:58]}  Nf6 {[%clk 0:02:56]} 2. Nc3 {[%clk 0:02:56]}  d6 {[%clk 0:02:54]} 3. d4 {[%clk 0:02:55]}  Nbd7 {[%clk 0:02:54]} 4. Nf3 {[%clk 0:02:43]}  e5 {[%clk 0:02:53]} 5. Bc4 {[%clk 0:02:43]}  Be7 {[%clk 0:02:52]} 6. a4 {[%clk 0:02:42]}  a5 {[%clk 0:02:50]} 7. Bxf7+ {[%clk 0:02:17]}  Kxf7 {[%clk 0:02:42]} 8. Ng5+ {[%clk 0:02:17]}  Kg8 {[%clk 0:02:43]} 9. Ne6 {[%clk 0:02:17]}  Qe8 {[%clk 0:02:33]} 10. Nxc7 {[%clk 0:02:15]}  Qd8 {[%clk 0:02:34]} 11. Nxa8 {[%clk 0:02:09]}  b6 {[%clk 0:02:34]} 12. dxe5 {[%clk 0:02:01]}  Nxe5 {[%clk 0:02:17]} 13. Nd5 {[%clk 0:01:40]}  Nxd5 {[%clk 0:01:31]} 14. Qxd5+ {[%clk 0:01:39]}  Kf8 {[%clk 0:01:31]} 15. Be3 {[%clk 0:01:30]}  Nd7 {[%clk 0:01:29]} 16. O-O-O {[%clk 0:01:23]}  Ba6 {[%clk 0:01:24]} 17. Nxb6 {[%clk 0:01:14]}  Nxb6 {[%clk 0:01:21]} 18. Qxa5 {[%clk 0:01:12]} 1-0


[Site "https://www.chess.com"]

[Event "Titled Tuesday Blitz November 22 Early 2022"]
[White "Gonzalez Vega, Alejandro"]
[Black "Sreyas Payyappat"]
[WhiteFideId "3510042"]
[BlackFideId "46674969"]
[WhiteElo "2288"]
[BlackElo "2083"]
[Result "0-1"]
[Round "02"]
[TimeControl "180+1"]
[Date "2022.11.23"]
[WhiteClock "0:00:04"]
[BlackClock "0:00:59"]

1. e4 {[%clk 0:03:00]}  c5 {[%clk 0:02:57]} 2. d4 {[%clk 0:02:58]}  cxd4 {[%clk 0:02:55]} 3. c3 {[%clk 0:02:59]}  e5 {[%clk 0:02:55]} 4. Nf3 {[%clk 0:02:58]}  Nc6 {[%clk 0:02:54]} 5. cxd4 {[%clk 0:02:58]}  exd4 {[%clk 0:02:55]} 6. Nxd4 {[%clk 0:02:58]}  Nxd4 {[%clk 0:02:56]} 7. Qxd4 {[%clk 0:02:57]}  d6 {[%clk 0:02:50]} 8. Nc3 {[%clk 0:02:57]}  Nf6 {[%clk 0:02:49]} 9. Bf4 {[%clk 0:02:49]}  Be6 {[%clk 0:02:48]} 10. Rd1 {[%clk 0:02:47]}  Qa5 {[%clk 0:02:44]} 11. Bb5+ {[%clk 0:02:43]}  Nd7 {[%clk 0:02:41]} 12. O-O {[%clk 0:02:18]}  O-O-O {[%clk 0:02:23]} 13. Rc1 {[%clk 0:02:01]}  Kb8 {[%clk 0:02:18]} 14. Bxd6+ {[%clk 0:01:55]}  Bxd6 {[%clk 0:02:16]} 15. Qxd6+ {[%clk 0:01:55]}  Ka8 {[%clk 0:02:16]} 16. Rfd1 {[%clk 0:01:33]}  Nf6 {[%clk 0:02:10]} 17. Qf4 {[%clk 0:01:28]}  Rxd1+ {[%clk 0:02:03]} 18. Rxd1 {[%clk 0:01:27]}  a6 {[%clk 0:01:56]} 19. Bf1 {[%clk 0:01:25]}  Qb4 {[%clk 0:01:54]} 20. Qe3 {[%clk 0:01:05]}  Re8 {[%clk 0:01:42]} 21. f3 {[%clk 0:00:59]}  Qxb2 {[%clk 0:01:32]} 22. Rb1 {[%clk 0:00:57]}  Qa3 {[%clk 0:01:29]} 23. Qb6 {[%clk 0:00:52]}  Rb8 {[%clk 0:01:23]} 24. Qb4 {[%clk 0:00:19]}  Qxb4 {[%clk 0:01:22]} 25. Rxb4 {[%clk 0:00:20]}  Rc8 {[%clk 0:01:22]} 26. Na4 {[%clk 0:00:18]}  Rc1 {[%clk 0:01:21]} 27. Kf2 {[%clk 0:00:16]}  Rc2+ {[%clk 0:01:19]} 28. Ke3 {[%clk 0:00:13]}  Rxa2 {[%clk 0:01:19]} 29. Nb6+ {[%clk 0:00:13]}  Ka7 {[%clk 0:01:18]} 30. Bc4 {[%clk 0:00:08]}  Bxc4 {[%clk 0:01:15]} 31. Nxc4 {[%clk 0:00:08]}  b5 {[%clk 0:01:13]} 32. Nd6 {[%clk 0:00:08]}  Kb6 {[%clk 0:01:13]} 33. Nxf7 {[%clk 0:00:08]}  a5 {[%clk 0:01:10]} 34. Rb1 {[%clk 0:00:08]}  b4 {[%clk 0:01:09]} 35. h4 {[%clk 0:00:08]}  Kb5 {[%clk 0:01:05]} 36. Nd6+ {[%clk 0:00:08]}  Kc5 {[%clk 0:01:05]} 37. Nf5 {[%clk 0:00:07]}  a4 {[%clk 0:01:03]} 38. g4 {[%clk 0:00:06]}  b3 {[%clk 0:01:03]} 39. Nxg7 {[%clk 0:00:05]}  b2 {[%clk 0:01:02]} 40. Ne6+ {[%clk 0:00:05]}  Kc4 {[%clk 0:01:00]} 41. Nd4 {[%clk 0:00:05]}  a3 {[%clk 0:01:00]} 42. Ne2 {[%clk 0:00:04]}  Ra1 {[%clk 0:00:59]} 0-1


[Site "https://www.chess.com"]

[Event "Titled Tuesday Blitz November 22 Early 2022"]
[White "Guliev, Logman"]
[Black "Prithu Gupta"]
[WhiteFideId "13400061"]
[BlackFideId "46618546"]
[WhiteElo "2161"]
[BlackElo "2344"]
[Result "0-1"]
[Round "02"]
[TimeControl "180+1"]
[Date "2022.11.23"]
[WhiteClock "0:00:02"]
[BlackClock "0:00:06"]

1. e4 {[%clk 0:03:00]}  e5 {[%clk 0:03:00]} 2. Nf3 {[%clk 0:02:59]}  Nc6 {[%clk 0:03:00]} 3. Bc4 {[%clk 0:02:57]}  Nf6 {[%clk 0:03:00]} 4. d3 {[%clk 0:02:57]}  Bc5 {[%clk 0:02:59]} 5. O-O {[%clk 0:02:56]}  O-O {[%clk 0:02:58]} 6. h3 {[%clk 0:02:56]}  h6 {[%clk 0:02:57]} 7. c3 {[%clk 0:02:56]}  d6 {[%clk 0:02:57]} 8. d4 {[%clk 0:02:56]}  Bb6 {[%clk 0:02:57]} 9. Re1 {[%clk 0:02:52]}  exd4 {[%clk 0:02:56]} 10. cxd4 {[%clk 0:02:52]}  Nxe4 {[%clk 0:02:53]} 11. Rxe4 {[%clk 0:02:49]}  d5 {[%clk 0:02:53]} 12. Bxd5 {[%clk 0:02:49]}  Qxd5 {[%clk 0:02:54]} 13. Nc3 {[%clk 0:02:49]}  Qd8 {[%clk 0:02:54]} 14. d5 {[%clk 0:02:49]}  Ne7 {[%clk 0:02:53]} 15. Be3 {[%clk 0:02:39]}  Nf5 {[%clk 0:02:38]} 16. Bxb6 {[%clk 0:02:37]}  cxb6 {[%clk 0:02:38]} 17. Qd2 {[%clk 0:02:34]}  Nd6 {[%clk 0:02:38]} 18. Rf4 {[%clk 0:02:31]}  Bf5 {[%clk 0:02:37]} 19. Nd4 {[%clk 0:02:26]}  Bg6 {[%clk 0:02:36]} 20. Rd1 {[%clk 0:02:16]}  a6 {[%clk 0:02:35]} 21. Nf3 {[%clk 0:02:10]}  Bh5 {[%clk 0:02:30]} 22. Re1 {[%clk 0:02:07]}  Bxf3 {[%clk 0:02:29]} 23. Rxf3 {[%clk 0:02:07]}  Qd7 {[%clk 0:02:29]} 24. Qd4 {[%clk 0:01:58]}  Rfe8 {[%clk 0:02:23]} 25. Rxe8+ {[%clk 0:01:56]}  Rxe8 {[%clk 0:02:24]} 26. Qxb6 {[%clk 0:01:55]}  Re1+ {[%clk 0:02:11]} 27. Kh2 {[%clk 0:01:54]}  Nc4 {[%clk 0:01:51]} 28. Qd4 {[%clk 0:01:51]}  Ne5 {[%clk 0:01:30]} 29. Rg3 {[%clk 0:01:47]}  Qf5 {[%clk 0:00:59]} 30. Qd2 {[%clk 0:01:40]}  Rf1 {[%clk 0:00:54]} 31. Qxh6 {[%clk 0:01:38]}  Ng6 {[%clk 0:00:15]} 32. Qe3 {[%clk 0:01:27]}  Rxf2 {[%clk 0:00:14]} 33. d6 {[%clk 0:01:23]}  Rxb2 {[%clk 0:00:13]} 34. Qe8+ {[%clk 0:01:14]}  Nf8 {[%clk 0:00:13]} 35. d7 {[%clk 0:01:14]}  Qxd7 {[%clk 0:00:13]} 36. Qe5 {[%clk 0:01:12]}  Ng6 {[%clk 0:00:11]} 37. Qb8+ {[%clk 0:01:10]}  Kh7 {[%clk 0:00:11]} 38. Ne4 {[%clk 0:01:07]}  f6 {[%clk 0:00:08]} 39. a4 {[%clk 0:00:31]}  Nh4 {[%clk 0:00:08]} 40. Qf4 {[%clk 0:00:28]}  Ng6 {[%clk 0:00:07]} 41. Qc1 {[%clk 0:00:25]}  Re2 {[%clk 0:00:05]} 42. Nc5 {[%clk 0:00:20]}  Qd5 {[%clk 0:00:04]} 43. Qb1 {[%clk 0:00:18]}  f5 {[%clk 0:00:03]} 44. Qb6 {[%clk 0:00:16]}  Qc6 {[%clk 0:00:02]} 45. Qb4 {[%clk 0:00:14]}  f4 {[%clk 0:00:01]} 46. Rg4 {[%clk 0:00:13]}  f3 {[%clk 0:00:01]} 47. Qc4 {[%clk 0:00:10]}  Rxg2+ {[%clk 0:00:01]} 48. Rxg2 {[%clk 0:00:11]}  fxg2 {[%clk 0:00:02]} 49. Kg1 {[%clk 0:00:11]}  Nh4 {[%clk 0:00:01]} 50. Qxh4+ {[%clk 0:00:10]}  Qh6 {[%clk 0:00:02]} 51. Qxh6+ {[%clk 0:00:10]}  Kxh6 {[%clk 0:00:03]} 52. Kxg2 {[%clk 0:00:10]}  b5 {[%clk 0:00:02]} 53. a5 {[%clk 0:00:10]}  b4 {[%clk 0:00:03]} 54. Kg3 {[%clk 0:00:10]}  Kg5 {[%clk 0:00:03]} 55. Kf3 {[%clk 0:00:09]}  Kf5 {[%clk 0:00:03]} 56. Nxa6 {[%clk 0:00:08]}  b3 {[%clk 0:00:03]} 57. Nb4 {[%clk 0:00:07]}  b2 {[%clk 0:00:03]} 58. Nd5 {[%clk 0:00:08]}  b1=Q {[%clk 0:00:03]} 59. Ne3+ {[%clk 0:00:07]}  Ke6 {[%clk 0:00:03]} 60. Kf4 {[%clk 0:00:06]}  Qb7 {[%clk 0:00:03]} 61. Nf5 {[%clk 0:00:03]}  Qb4+ {[%clk 0:00:03]} 62. Kg5 {[%clk 0:00:03]}  Qxa5 {[%clk 0:00:04]} 63. Kh4 {[%clk 0:00:02]}  Qxf5 {[%clk 0:00:05]} 64. Kg3 {[%clk 0:00:01]}  g5 {[%clk 0:00:06]} 65. h4 {[%clk 0:00:02]}  Qf4+ {[%clk 0:00:06]} 0-1


[Site "https://www.chess.com"]

[Event "Titled Tuesday Blitz November 22 Early 2022"]
[White "Hambleton, Aman"]
[Black "Mortazavi, Ali"]
[WhiteFideId "2606577"]
[BlackFideId "401323"]
[WhiteElo "2538"]
[BlackElo "2339"]
[Result "1-0"]
[Round "02"]
[TimeControl "180+1"]
[Date "2022.11.23"]
[WhiteClock "0:00:04"]
[BlackClock "0:00:05"]

1. d4 {[%clk 0:03:00]}  Nf6 {[%clk 0:02:59]} 2. c4 {[%clk 0:02:53]}  g6 {[%clk 0:02:59]} 3. Nc3 {[%clk 0:02:54]}  Bg7 {[%clk 0:03:00]} 4. e4 {[%clk 0:02:54]}  O-O {[%clk 0:03:00]} 5. Bd3 {[%clk 0:02:54]}  d6 {[%clk 0:03:01]} 6. Nge2 {[%clk 0:02:55]}  Nc6 {[%clk 0:03:00]} 7. O-O {[%clk 0:02:48]}  Nh5 {[%clk 0:03:00]} 8. Be3 {[%clk 0:02:36]}  e5 {[%clk 0:02:59]} 9. Bc2 {[%clk 0:02:34]}  exd4 {[%clk 0:02:47]} 10. Nxd4 {[%clk 0:02:35]}  Ne5 {[%clk 0:02:47]} 11. Bb3 {[%clk 0:01:11]}  Ng4 {[%clk 0:02:30]} 12. Bc1 {[%clk 0:01:11]}  c5 {[%clk 0:01:33]} 13. Nf3 {[%clk 0:00:57]}  Re8 {[%clk 0:01:25]} 14. Ba4 {[%clk 0:00:53]}  Bd7 {[%clk 0:01:15]} 15. Bxd7 {[%clk 0:00:15]}  Qxd7 {[%clk 0:01:15]} 16. h3 {[%clk 0:00:14]}  Ne5 {[%clk 0:01:08]} 17. Nxe5 {[%clk 0:00:05]}  Bxe5 {[%clk 0:01:09]} 18. Nd5 {[%clk 0:00:05]}  Nf6 {[%clk 0:00:49]} 19. Nxf6+ {[%clk 0:00:02]}  Bxf6 {[%clk 0:00:48]} 20. Qd3 {[%clk 0:00:02]}  a6 {[%clk 0:00:39]} 21. f3 {[%clk 0:00:02]}  b5 {[%clk 0:00:38]} 22. Rb1 {[%clk 0:00:02]}  bxc4 {[%clk 0:00:37]} 23. Qxc4 {[%clk 0:00:03]}  a5 {[%clk 0:00:19]} 24. Be3 {[%clk 0:00:02]}  Rab8 {[%clk 0:00:18]} 25. Rfd1 {[%clk 0:00:02]}  Qc7 {[%clk 0:00:13]} 26. b3 {[%clk 0:00:02]}  Be5 {[%clk 0:00:11]} 27. Qd5 {[%clk 0:00:02]}  a4 {[%clk 0:00:10]} 28. bxa4 {[%clk 0:00:02]}  Qa5 {[%clk 0:00:07]} 29. Qc4 {[%clk 0:00:02]}  Rxb1 {[%clk 0:00:04]} 30. Rxb1 {[%clk 0:00:03]}  Ra8 {[%clk 0:00:03]} 31. a3 {[%clk 0:00:02]}  Qxa4 {[%clk 0:00:03]} 32. Rb8+ {[%clk 0:00:02]}  Kg7 {[%clk 0:00:03]} 33. Qxa4 {[%clk 0:00:02]}  Rxa4 {[%clk 0:00:03]} 34. Rb3 {[%clk 0:00:03]}  c4 {[%clk 0:00:03]} 35. Rb4 {[%clk 0:00:02]}  Rxa3 {[%clk 0:00:03]} 36. Bg5 {[%clk 0:00:02]}  Bd4+ {[%clk 0:00:02]} 37. Kf1 {[%clk 0:00:02]}  c3 {[%clk 0:00:01]} 38. Rxd4 {[%clk 0:00:01]}  Ra1+ {[%clk 0:00:02]} 39. Ke2 {[%clk 0:00:01]}  Ra2+ {[%clk 0:00:02]} 40. Kf1 {[%clk 0:00:02]}  Ra1+ {[%clk 0:00:02]} 41. Kf2 {[%clk 0:00:02]}  Ra2+ {[%clk 0:00:03]} 42. Kg3 {[%clk 0:00:03]}  c2 {[%clk 0:00:01]} 43. Rc4 {[%clk 0:00:03]}  h6 {[%clk 0:00:01]} 44. Be3 {[%clk 0:00:04]}  Kf6 {[%clk 0:00:02]} 45. Rc3 {[%clk 0:00:03]}  Ke5 {[%clk 0:00:02]} 46. Kf2 {[%clk 0:00:03]}  f5 {[%clk 0:00:02]} 47. Kg3 {[%clk 0:00:03]}  g5 {[%clk 0:00:02]} 48. exf5 {[%clk 0:00:03]}  Kxf5 {[%clk 0:00:03]} 49. h4 {[%clk 0:00:03]}  d5 {[%clk 0:00:02]} 50. hxg5 {[%clk 0:00:03]}  hxg5 {[%clk 0:00:03]} 51. Rc5 {[%clk 0:00:03]}  Ke5 {[%clk 0:00:03]} 52. Bxg5 {[%clk 0:00:03]}  Kd4 {[%clk 0:00:03]} 53. Rc7 {[%clk 0:00:03]}  Kd3 {[%clk 0:00:03]} 54. Rc5 {[%clk 0:00:02]}  d4 {[%clk 0:00:04]} 55. Bf6 {[%clk 0:00:02]}  Ra1 {[%clk 0:00:03]} 56. Bxd4 {[%clk 0:00:02]}  c1=Q {[%clk 0:00:02]} 57. Rxc1 {[%clk 0:00:02]}  Rxc1 {[%clk 0:00:02]} 58. Be5 {[%clk 0:00:03]}  Rc8 {[%clk 0:00:01]} 59. Kf4 {[%clk 0:00:03]}  Rd8 {[%clk 0:00:02]} 60. g4 {[%clk 0:00:03]}  Re8 {[%clk 0:00:02]} 61. g5 {[%clk 0:00:03]}  Rf8+ {[%clk 0:00:02]} 62. Bf6 {[%clk 0:00:03]}  Kc4 {[%clk 0:00:02]} 63. Kf5 {[%clk 0:00:03]}  Kd5 {[%clk 0:00:03]} 64. g6 {[%clk 0:00:03]}  Ra8 {[%clk 0:00:03]} 65. f4 {[%clk 0:00:03]}  Kd6 {[%clk 0:00:02]} 66. g7 {[%clk 0:00:02]}  Ra5+ {[%clk 0:00:03]} 67. Kg6 {[%clk 0:00:03]}  Ra8 {[%clk 0:00:03]} 68. Kh7 {[%clk 0:00:02]}  Ra7 {[%clk 0:00:03]} 69. Kh8 {[%clk 0:00:02]}  Ke6 {[%clk 0:00:03]} 70. g8=Q+ {[%clk 0:00:02]}  Kxf6 {[%clk 0:00:03]} 71. Qg5+ {[%clk 0:00:02]}  Kf7 {[%clk 0:00:03]} 72. Qg7+ {[%clk 0:00:02]}  Ke6 {[%clk 0:00:03]} 73. Qxa7 {[%clk 0:00:03]}  Kf5 {[%clk 0:00:04]} 74. Qb8 {[%clk 0:00:04]}  Kg4 {[%clk 0:00:05]} 75. Kg7 {[%clk 0:00:04]} 1-0


[Site "https://www.chess.com"]